bitfinex/quotes_SOLUSD_20240809
["timestamp","ask_amount","ask_price","bid_price","bid_amount"]
[1723182664945,18.58,157.54,157.53,6.3476]
[1723182665275,18.58,157.54,157.53,6.3479]
[1723182673186,18.58,157.54,157.52,15.8709]
[1723182673369,18.58,157.53,157.52,15.8709]
[1723182674181,18.58,157.53,157.48,47.9109]
[1723182674182,18.58,157.53,157.49,15.8736]
[1723182674477,18.58,157.5,157.49,22.2228]
[1723182675866,18.58,157.5,157.49,15.8736]
[1723182676059,18.58,157.5,157.49,22.2232]
[1723182679659,2.47906672,157.59,157.49,15.8736]
[1723182679998,18.58,157.54,157.51,15.8713]
[1723182680156,18.58,157.54,157.53,6.3479]
[1723182683190,18.58,157.54,157.5,6.3491]
[1723182683373,18.58,157.51,157.5,6.3491]
[1723182689399,18.58,157.51,157.48,22.2246]
[1723182689566,18.58,157.49,157.48,22.2248]
[1723182691679,6.3475,157.55,157.49,6.3496]
[1723182691898,18.58,157.5,157.49,6.3496]
[1723182696521,18.58,157.5,157.48,22.2247]
[1723182696798,18.58,157.49,157.47,6.3502]
[1723182697005,18.58,157.48,157.47,6.3502]
[1723182697202,18.58,157.48,157.46,6.3507]
[1723182697794,18.58,157.48,157.47,6.3504]
[1723182703410,18.58,157.48,157.43,6.6377]
[1723182703621,18.58,157.44,157.41,18.9879205]
[1723182703802,1.53318147,157.47,157.41,15.8812]
[1723182703803,18.58,157.42,157.41,15.8812]
[1723182704322,18.58,157.42,157.39,21.1867]
[1723182704323,18.58,157.42,157.39,27.5399]
[1723182704491,74.32,157.44,157.39,6.3532]
[1723182704492,18.58,157.4,157.39,6.3532]
[1723182707001,18.58,157.41,157.4,6.3531]
[1723182707515,18.58,157.41,157.38,15.885]
[1723182707516,18.58,157.41,157.38,22.2389]
[1723182707713,18.58,157.39,157.38,22.2389]
[1723182708493,18.58,157.39,157.38,15.885]
[1723182708694,18.58,157.39,157.35,15.8881]
[1723182708991,18.58,157.37,157.35,15.8881]
[1723182709192,18.58,157.36,157.35,22.2433]
[1723182709817,108.2491,157.36,157.32,15.8911]
[1723182710022,18.58,157.33,157.32,15.8911]
[1723182710428,18.58,157.33,157.29,3.10909068]
[1723182710597,18.58,157.3,157.28,15.8945]
[1723182710795,18.58,157.29,157.28,15.8945]
[1723182710995,18.58,157.29,157.24,15.8983]
[1723182711292,18.58,157.25,157.24,15.8983]
[1723182711720,27.22,157.25,157.2,15.9023]
[1723182711928,27.22,157.23,157.22,6.3604]
[1723182712423,33.5802,157.23,157.18,7.1702869]
[1723182712628,27.22,157.19,157.18,0.8082869]
[1723182712999,27.22,157.2,157.18,0.8082869]
[1723182713704,54.44,157.2,157.18,0.49516048]
[1723182713908,20.0,157.19,157.11,3.11265275]
[1723182714100,27.22,157.15,157.12,6.3645]
[1723182714301,27.22,157.15,157.11,6.3649]
[1723182714821,27.22,157.15,157.1,15.9127]
[1723182714822,27.22,157.15,157.12,6.3645]
[1723182715425,27.22,157.15,157.13,6.364]
[1723182715794,27.22,157.15,157.11,6.3647]
[1723182716207,27.22,157.15,157.1,15.9127]
[1723182716904,27.22,157.11,157.05,19.03174192]
[1723182717230,27.22,157.11,157.05,3.11384192]
[1723182717392,27.22,157.11,157.09,6.3656]
[1723182717837,27.22,157.11,157.05,3.11384192]
[1723182718040,27.22,157.07,157.04,22.2864]
[1723182718405,27.22,157.07,157.04,15.919]
[1723182719040,27.22,157.09,157.05,1.2734481]
[1723182719209,27.22,157.09,157.04,15.919]
[1723182719537,27.22,157.09,157.04,22.2865]
[1723182719735,27.22,157.09,157.05,6.3673]
[1723182720332,27.22,157.09,157.04,15.919]
[1723182720539,27.22,157.09,157.05,51.3673]
[1723182721809,27.22,157.11,157.05,45.0]
[1723182722016,27.22,157.13,157.08,6.366]
[1723182722324,6.3637,157.14,157.09,6.3657]
[1723182722524,27.22,157.13,157.09,6.3657]
[1723182723542,27.22,157.13,157.08,6.3661]
[1723182724949,8.83173104,157.18,157.07,15.9163]
[1723182725110,27.22,157.14,157.11,6.3649]
[1723182725321,27.22,157.14,157.1,22.2783]
[1723182725946,27.22,157.14,157.08,6.3661]
[1723182725947,33.5837,157.14,157.08,6.3661]
[1723182726251,27.22,157.12,157.07,22.2829]
[1723182726452,27.22,157.12,157.08,51.3661]
[1723182726955,33.5857,157.1,157.04,6.3677]
[1723182727450,44.11396313,157.2,157.05,1.27336679]
[1723182727670,27.22,157.16,157.11,15.9122]
[1723182727833,27.22,157.14,157.11,15.9122]
[1723182728034,27.22,157.14,157.07,15.9155]
[1723182728351,27.22,157.14,157.08,51.3658]
[1723182728650,33.5838,157.14,157.08,51.3658]
[1723182728836,6.365,157.11,157.06,6.3666]
[1723182729038,27.22,157.1,157.05,20.0]
[1723182729254,27.22,157.1,157.06,51.3666]
[1723182729452,33.5845,157.12,157.07,6.3664]
[1723182729629,27.22,157.12,157.07,6.3664]
[1723182729828,27.22,157.12,157.08,6.366]
[1723182730034,33.5846,157.12,157.07,15.9162]
[1723182730255,33.5846,157.12,157.07,22.2827]
[1723182730951,33.5856,157.1,157.05,6.367]
[1723182731155,27.22,157.1,157.05,6.367]
[1723182731359,27.22,157.1,157.06,6.3669]
[1723182731528,27.22,157.1,157.07,6.3664]
[1723182731728,27.22,157.12,157.08,6.366]
[1723182732733,27.22,157.12,157.06,15.9172]
[1723182732734,27.22,157.12,157.09,6.3654]
[1723182734655,33.5837,157.14,157.09,6.3654]
[1723182735333,27.22,157.14,157.1,6.365]
[1723182735535,33.5829,157.16,157.11,6.3649]
[1723182735743,27.22,157.16,157.08,1.27295455]
[1723182736040,33.5824,157.18,157.13,6.3637]
[1723182737254,27.22,157.2,157.14,46.2725932]
[1723182737462,27.22,157.2,157.15,1.27247056]
[1723182737765,27.22,157.2,157.11,27.22]
[1723182737766,27.22,157.18,157.04,38.2272]
[1723182737961,27.22,157.16,157.07,27.22]
[1723182738170,27.22,157.16,157.11,15.9123]
[1723182738351,27.22,157.16,157.12,6.3645]
[1723182740273,27.22,157.14,157.07,43.1356]
[1723182740478,27.22,157.14,157.07,15.9156]
[1723182741284,27.22,157.09,157.01,1.27292779]
[1723182741466,27.22,157.09,156.98,6.2944]
[1723182741467,27.22,157.07,157.05,6.3673]
[1723182741854,27.22,157.07,157.04,6.3677]
[1723182742354,27.22,157.12,157.03,15.9204]
[1723182742355,27.22,157.09,157.05,6.3673]
[1723182744098,33.5849,157.11,157.05,6.3673]
[1723182744580,33.5849,157.11,157.06,45.0]
[1723182745572,6.3654,157.1,157.06,45.0]
[1723182746284,6.3654,157.1,157.05,45.0]
[1723182747279,6.3654,157.1,157.05,51.3672]
[1723182748285,27.22,157.13,157.05,60.9175]
[1723182748952,33.5842,157.13,157.08,6.366]
[1723182749179,33.5836,157.15,157.07,15.9156]
[1723182749372,33.5836,157.15,157.08,46.27284973]
[1723182749579,33.5836,157.15,157.08,45.0]
[1723182750066,33.5836,157.15,157.1,6.3653]
[1723182751871,27.22,157.13,157.08,6.3658]
[1723182752389,27.22,157.13,157.09,6.3656]
[1723182753563,27.22,157.13,157.1,6.3652]
[1723182753964,27.22,157.15,157.12,6.3645]
[1723182754163,27.22,157.17,157.1,1.27271412]
[1723182754363,6.3629,157.16,157.11,22.276]
[1723182754586,33.5825,157.17,157.12,51.3645]
[1723182755483,20.0,157.16,157.12,51.3645]
[1723182755876,20.0,157.16,157.13,6.3641]
[1723182756078,20.0,157.16,157.12,45.0]
[1723182756893,26.3629,157.16,157.12,45.0]
[1723182757682,20.0,157.16,157.12,51.3645]
[1723182757878,27.22,157.17,157.13,6.364]
[1723182758078,27.22,157.17,157.14,6.3635]
[1723182758969,33.5818,157.19,157.14,6.3635]
[1723182759172,6.3622,157.18,157.13,6.3641]
[1723182759371,33.5817,157.19,157.14,51.3637]
[1723182759577,2.4698373,157.22,157.13,23.1361]
[1723182759773,646.7861,157.29,157.17,15.9055]
[1723182759774,27.22,157.23,157.17,15.9055]
[1723182760003,33.5802,157.23,157.18,51.362]
[1723182760203,6.3605,157.22,157.18,45.0]
[1723182760818,6.3605,157.22,157.13,23.1361]
[1723182760819,27.22,157.19,157.13,23.1361]
[1723182760977,27.22,157.17,157.13,29.5002]
[1723182761187,27.22,157.15,157.13,6.5044]
[1723182761793,33.5835,157.15,157.1,6.3649]
[1723182762608,27.22,157.15,157.11,6.3649]
[1723182763192,27.22,157.15,157.12,6.3644]
[1723182763403,33.5825,157.17,157.12,6.3644]
[1723182763582,27.22,157.17,157.12,6.3644]
[1723182764284,27.22,157.17,157.13,6.3641]
[1723182766382,33.5825,157.17,157.12,6.3644]
[1723182766894,27.22,157.19,157.13,15.9094]
[1723182767094,27.22,157.19,157.14,45.0]
[1723182768097,33.5817,157.19,157.15,6.3633]
[1723182768299,6.3621,157.18,157.14,45.0]
[1723182768500,1.53318147,157.23,157.13,15.9094]
[1723182768501,27.22,157.17,157.13,15.9094]
[1723182768695,27.22,157.17,157.13,22.2734]
[1723182769207,27.22,157.17,157.14,6.3636]
[1723182769394,27.22,157.19,157.15,6.3631]
[1723182769594,33.5819,157.19,157.13,22.2731]
[1723182770096,33.5819,157.19,157.14,6.3636]
[1723182770295,33.5819,157.19,157.15,51.3633]
[1723182770790,33.5819,157.19,157.15,45.0]
[1723182770985,6.3621,157.18,157.13,22.2735]
[1723182771201,33.5818,157.19,157.14,6.3636]
[1723182771414,27.22,157.19,157.15,6.3633]
[1723182771996,27.22,157.19,157.16,6.3628]
[1723182772391,27.22,157.19,157.15,15.9075]
[1723182772784,27.22,157.19,157.15,22.2708]
[1723182773209,27.22,157.19,157.15,15.9075]
[1723182773516,27.22,157.19,157.16,45.0]
[1723182773699,27.22,157.19,157.16,51.3628]
[1723182775517,27.22,157.21,157.16,45.0]
[1723182775689,33.5806,157.22,157.16,51.3625]
[1723182775892,33.5806,157.22,157.17,6.3625]
[1723182776225,33.5804,157.23,157.18,6.3619]
[1723182776425,33.5804,157.23,157.18,51.3619]
[1723182777193,20.0,157.22,157.18,51.3619]
[1723182778012,20.0,157.22,157.19,6.3614]
[1723182778221,27.22,157.23,157.19,6.3614]
[1723182779287,33.5801,157.23,157.18,51.362]
[1723182779495,27.22,157.22,157.18,51.362]
[1723182780500,2.48440679,157.26,157.18,45.0]
[1723182780711,15.8959,157.28,157.2,6.3609]
[1723182780712,33.5793,157.25,157.2,6.3609]
[1723182781023,33.5793,157.25,157.21,45.0]
[1723182781190,33.5793,157.25,157.21,46.27196317]
[1723182781387,33.5789,157.26,157.21,51.3608]
[1723182781592,27.22,157.27,157.22,7.63206749]
[1723182781817,27.22,157.29,157.23,1.27186912]
[1723182782026,27.22,157.29,157.24,6.3593]
[1723182782190,27.22,157.32,157.25,6.3592]
[1723182782395,6.3572,157.31,157.25,51.3592]
[1723182782589,6.3572,157.31,157.25,45.0]
[1723182782914,33.5765,157.32,157.28,6.358]
[1723182783297,27.22,157.34,157.29,6.3574]
[1723182783503,27.22,157.34,157.3,1.27126461]
[1723182784010,6.3555,157.35,157.3,6.3572]
[1723182784318,33.5749,157.36,157.31,51.3568]
[1723182784695,33.5745,157.37,157.31,51.3568]
[1723182785503,27.22,157.37,157.31,45.0]
[1723182786421,27.22,157.37,157.32,6.5898]
[1723182786604,27.22,157.37,157.33,45.0]
[1723182787001,27.22,157.37,157.33,51.356]
[1723182787835,27.22,157.39,157.35,6.3548]
[1723182788302,27.22,157.39,157.36,45.0]
[1723182790006,27.22,157.39,157.33,15.8896]
[1723182790321,286.79101572,157.44,157.33,15.8896]
[1723182790322,27.22,157.37,157.33,15.8896]
[1723182790893,33.5744,157.37,157.33,15.8896]
[1723182791508,33.5744,157.37,157.29,59.007]
[1723182791509,27.22,157.34,157.3,15.893]
[1723182792307,27.22,157.34,157.3,22.2502]
[1723182793896,27.22,157.34,157.3,15.893]
[1723182794102,6.3532,157.4,157.33,15.8899]
[1723182794337,27.22,157.38,157.31,45.0]
[1723182794618,33.5748,157.36,157.31,51.3568]
[1723182794822,27.22,157.36,157.32,6.3563]
[1723182795034,27.22,157.36,157.33,6.3557]
[1723182796140,27.22,157.34,157.29,6.1303]
[1723182796314,27.22,157.34,157.3,6.3572]
[1723182796920,27.22,157.34,157.32,6.3564]
[1723182797526,27.22,157.34,157.3,15.8923]
[1723182798226,27.22,157.34,157.3,22.2495]
[1723182799310,27.22,157.34,157.31,6.3568]
[1723182799516,6.3568,157.32,157.29,6.1303]
[1723182799716,27.22,157.32,157.29,6.1303]
[1723182799905,27.22,157.32,157.26,15.8965]
[1723182801013,27.22,157.32,157.28,6.358]
[1723182801216,27.22,157.32,157.29,45.0]
[1723182801619,27.22,157.32,157.29,60.894]
[1723182801816,27.22,157.34,157.3,1.27126354]
[1723182802609,27.22,157.34,157.29,60.894]
[1723182802935,27.22,157.34,157.32,6.3564]
[1723182803324,27.22,157.34,157.31,6.3568]
[1723182804910,27.22,157.34,157.3,6.3572]
[1723182805923,27.22,157.34,157.31,51.3568]
[1723182806123,27.22,157.34,157.31,45.0]
[1723182806325,33.5757,157.34,157.31,45.0]
[1723182806522,33.5757,157.34,157.3,45.0]
[1723182808619,33.5757,157.34,157.3,51.3572]
[1723182809431,27.22,157.34,157.3,51.3572]
[1723182810823,27.22,157.34,157.31,6.3566]
[1723182811522,27.22,157.34,157.3,51.3572]
[1723182813949,27.22,157.36,157.31,15.8914]
[1723182814240,33.575,157.36,157.31,15.8914]
[1723182814451,27.22,157.34,157.31,15.8914]
[1723182815039,27.22,157.34,157.31,22.2481]
[1723182816026,27.22,157.36,157.32,51.3563]
[1723182816918,27.22,157.36,157.32,52.62739111]
[1723182818340,33.5749,157.36,157.32,51.3563]
[1723182818646,33.5749,157.36,157.32,45.0]
[1723182819820,27.22,157.34,157.32,45.0]
[1723182821343,27.22,157.34,157.3,6.3571]
[1723182821539,27.22,157.34,157.31,45.0]
[1723182822221,27.22,157.32,157.28,22.2525]
[1723182822414,35.10978147,157.32,157.28,15.8948]
[1723182822937,28.75318147,157.32,157.28,22.2528]
[1723182823144,28.75318147,157.32,157.25,6.2643]
[1723182823145,27.22,157.3,157.25,6.2643]
[1723182823324,27.22,157.3,157.26,6.3585]
[1723182823526,27.22,157.28,157.25,6.3591]
[1723182824116,27.22,157.28,157.24,22.258]
[1723182824318,27.22,157.26,157.24,15.8983]
[1723182824519,27.22,157.26,157.23,6.36]
[1723182824715,27.22,157.26,157.24,6.3594]
[1723182827951,27.22,157.26,157.23,15.8994]
[1723182828143,27.22,157.26,157.24,45.0]
[1723182829050,27.22,157.26,157.25,6.3593]
[1723182829227,27.22,157.28,157.25,6.3593]
[1723182831926,27.22,157.28,157.24,51.3596]
[1723182833343,27.22,157.28,157.25,6.3591]
[1723182833850,18.66,157.26,157.25,6.3591]
[1723182834036,18.66,157.26,157.25,51.3591]
[1723182838050,18.66,157.26,157.23,15.8994]
[1723182838346,18.66,157.24,157.21,6.0944]
[1723182838647,1.53318147,157.25,157.21,6.0944]
[1723182838648,18.66,157.22,157.21,6.3605]
[1723182839843,74.64,157.28,157.23,6.3597]
[1723182840036,18.66,157.27,157.22,18.66]
[1723182840240,18.66,157.27,157.26,6.3588]
[1723182840641,18.66,157.27,157.26,51.3588]
[1723182840842,18.66,157.28,157.26,51.3588]
[1723182841033,18.66,157.28,157.27,6.3584]
[1723182842645,18.66,157.28,157.26,67.2553]
[1723182843266,18.66,157.27,157.24,6.3595]
[1723182843450,18.66,157.26,157.23,15.2339]
[1723182843653,18.66,157.25,157.22,22.2606]
[1723182843851,18.66,157.25,157.23,51.36]
[1723182844036,18.66,157.25,157.23,6.36]
[1723182845543,18.66,157.25,157.24,6.3597]
[1723182845952,18.66,157.26,157.24,6.3597]
[1723182850665,18.66,157.25,157.24,6.3597]
[1723182850867,18.66,157.25,157.24,51.3597]
[1723182851364,18.66,157.25,157.24,45.0]
[1723182853763,18.66,157.25,157.24,51.3597]
[1723182855468,18.66,157.26,157.24,51.3597]
[1723182855677,18.66,157.26,157.25,6.3593]
[1723182856169,6.3564,157.32,157.27,6.3581]
[1723182856372,18.66,157.28,157.27,6.3581]
[1723182858141,18.66,157.28,157.24,45.0]
[1723182858646,18.66,157.25,157.24,45.0]
[1723182858845,18.66,157.25,157.24,51.3597]
[1723182859976,18.66,157.26,157.24,51.3597]
[1723182860347,18.66,157.25,157.24,51.3597]
[1723182860759,18.66,157.26,157.24,51.3597]
[1723182861087,18.66,157.25,157.24,51.3597]
[1723182862849,18.66,157.25,157.24,45.0]
[1723182863260,25.0193,157.25,157.2,15.903]
[1723182863485,18.66,157.21,157.17,15.906]
[1723182863763,1.53318147,157.24,157.17,15.906]
[1723182863764,18.66,157.18,157.17,15.906]
[1723182863966,18.66,157.18,157.17,22.2685]
[1723182866680,18.66,157.19,157.17,67.2685]
[1723182867661,6.3597,157.24,157.17,60.906]
[1723182867846,18.66,157.2,157.18,45.0]
[1723182868973,18.66,157.2,157.19,6.3615]
[1723182869175,18.66,157.2,157.19,51.3615]
[1723182869987,18.66,157.2,157.19,45.0]
[1723182875879,6.3597,157.24,157.19,51.3617]
[1723182876084,18.66,157.2,157.19,51.3617]
[1723182877493,18.66,157.2,157.19,45.0]
[1723182878495,18.66,157.2,157.18,45.0]
[1723182878679,18.66,157.19,157.18,45.0]
[1723182882097,18.66,157.19,157.18,51.3621]
[1723182884200,18.3078906,157.27,157.19,6.3617]
[1723182884502,18.3078906,157.27,157.21,6.3609]
[1723182884503,18.66,157.22,157.21,6.3609]
[1723182885000,18.66,157.22,157.21,51.3609]
[1723182885687,18.66,157.22,157.19,15.9034]
[1723182885892,18.66,157.2,157.19,15.9034]
[1723182886506,18.66,157.21,157.19,22.2651]
[1723182886800,18.66,157.21,157.2,6.3613]
[1723182887386,18.66,157.21,157.2,51.3613]
[1723182888281,18.66,157.21,157.2,45.0]
[1723182891592,18.66,157.21,157.19,45.0]
[1723182891895,18.66,157.2,157.19,45.0]
[1723182893398,18.66,157.2,157.16,15.907]
[1723182893603,18.66,157.19,157.17,45.0]
[1723182893785,18.66,157.18,157.16,15.907]
[1723182893991,6.3611,157.21,157.16,15.907]
[1723182894187,18.66,157.18,157.16,22.2698]
[1723182894406,1.53318147,157.26,157.16,22.2698]
[1723182894407,18.66,157.19,157.17,6.3625]
[1723182895085,18.66,157.19,157.18,45.0]
[1723182895289,6.3603,157.23,157.18,45.0]
[1723182895501,15.7604,157.27,157.19,17.17617561]
[1723182895800,18.66,157.21,157.19,17.17617561]
[1723182895982,18.66,157.21,157.19,15.9039]
[1723182896179,18.66,157.2,157.19,22.2656]
[1723182896384,18.66,157.2,157.19,67.2656]
[1723182896787,18.66,157.2,157.17,6.3624]
[1723182896992,18.66,157.19,157.17,6.3624]
[1723182897994,18.66,157.18,157.16,15.907]
[1723182898201,18.66,157.17,157.16,15.907]
[1723182899109,18.66,157.18,157.16,22.2699]
[1723182900708,6.3605,157.22,157.17,51.3625]
[1723182901005,18.66,157.19,157.17,51.3625]
[1723182902614,15.7604,157.27,157.18,17.17683008]
[1723182902911,18.66,157.21,157.19,45.0]
[1723182903819,18.66,157.21,157.2,6.3613]
[1723182904018,18.66,157.21,157.2,51.3613]
[1723182904195,6.3593,157.25,157.2,51.3613]
[1723182904398,18.66,157.22,157.21,45.0]
[1723182904921,18.66,157.22,157.21,51.3609]
[1723182907514,6.3594,157.25,157.21,45.0]
[1723182907705,18.66,157.23,157.21,45.0]
[1723182908091,18.66,157.22,157.21,45.0]
[1723182908291,18.66,157.22,157.2,45.0]
[1723182908499,18.66,157.21,157.2,45.0]
[1723182908701,18.66,157.21,157.19,45.0]
[1723182908924,18.66,157.2,157.19,45.0]
[1723182911319,18.66,157.2,157.19,51.3617]
[1723182911520,4.01787012,157.28,157.19,45.0]
[1723182911744,18.66,157.21,157.2,15.9025]
[1723182912022,18.66,157.21,157.17,22.2682]
[1723182912222,18.66,157.19,157.17,22.2682]
[1723182912398,18.66,157.19,157.18,6.3621]
[1723182912599,18.66,157.19,157.17,22.2685]
[1723182912815,18.66,157.18,157.17,22.2685]
[1723182913320,18.66,157.18,157.17,67.2685]
[1723182913517,18.66,157.18,157.14,15.9092]
[1723182913723,18.66,157.15,157.13,6.3641]
[1723182913918,18.66,157.15,157.14,6.3637]
[1723182914823,18.66,157.17,157.15,6.3633]
[1723182914999,18.66,157.18,157.13,19.93250174]
[1723182915308,15.7321,157.23,157.18,6.3621]
[1723182915511,18.66,157.2,157.18,6.3621]
[1723182915829,15.7321,157.23,157.18,6.3621]
[1723182916133,18.66,157.19,157.18,6.3621]
[1723182916314,18.66,157.2,157.18,51.3621]
[1723182916627,18.66,157.19,157.18,51.3621]
[1723182917014,20.0,157.22,157.18,51.3621]
[1723182917208,18.66,157.21,157.19,51.3615]
[1723182917721,18.66,157.2,157.17,15.9056]
[1723182918102,18.66,157.2,157.18,51.362]
[1723182918513,18.66,157.2,157.18,45.0]
[1723182919327,18.66,157.21,157.19,6.3617]
[1723182919524,18.66,157.21,157.2,45.0]
[1723182922020,18.66,157.21,157.19,45.0]
[1723182922216,18.66,157.21,157.19,6.3617]
[1723182922527,18.66,157.21,157.2,45.0]
[1723182922719,18.66,157.21,157.18,51.362]
[1723182924025,18.66,157.19,157.18,45.0]
[1723182924222,18.66,157.19,157.14,15.909]
[1723182924535,15.8989,157.25,157.14,22.2724]
[1723182924536,6.3613,157.2,157.14,22.2724]
[1723182924713,18.66,157.17,157.14,15.909]
[1723182924919,18.66,157.18,157.16,6.3627]
[1723182925108,18.66,157.18,157.17,6.3625]
[1723182925307,18.66,157.2,157.17,6.3625]
[1723182925812,6.3593,157.25,157.18,60.9044]
[1723182926017,18.66,157.22,157.19,6.3616]
[1723182926214,18.66,157.22,157.2,45.0]
[1723182926736,18.66,157.21,157.2,45.0]
[1723182926935,18.66,157.21,157.15,15.9081]
[1723182927232,18.66,157.19,157.17,6.3623]
[1723182927434,18.66,157.19,157.18,45.0]
[1723182927620,18.66,157.2,157.18,45.0]
[1723182928023,18.66,157.2,157.18,51.3621]
[1723182928226,18.66,157.21,157.18,51.3621]
[1723182929009,18.66,157.2,157.18,45.0]
[1723182929428,18.66,157.21,157.18,45.0]
[1723182931012,18.66,157.21,157.19,6.3615]
[1723182931215,92.44422122,157.28,157.2,45.0]
[1723182931527,18.66,157.23,157.21,6.3608]
[1723182931834,18.66,157.22,157.2,45.0]
[1723182932741,18.66,157.21,157.2,45.0]
[1723182933240,18.66,157.22,157.2,51.3612]
[1723182942257,6.3594,157.25,157.2,51.3612]
[1723182942538,18.66,157.22,157.2,51.3612]
[1723182943542,6.3589,157.26,157.21,6.3608]
[1723182943746,18.66,157.22,157.21,6.3608]
[1723182944045,18.66,157.22,157.17,6.3889]
[1723182944249,18.66,157.18,157.15,6.3633]
[1723182944827,6.3613,157.2,157.15,6.3633]
[1723182944828,18.66,157.17,157.15,6.3633]
[1723182945040,18.66,157.19,157.14,18.66]
[1723182945454,18.66,157.19,157.15,45.0]
[1723182945929,18.66,157.19,157.17,6.3625]
[1723182946136,18.66,157.19,157.18,45.0]
[1723182949283,31.1592,157.28,157.18,60.9045]
[1723182949482,31.1592,157.28,157.19,6.3616]
[1723182949483,18.66,157.22,157.19,6.3616]
[1723182949782,18.66,157.22,157.18,79.5645]
[1723182949783,6.3585,157.27,157.2,60.9025]
[1723182949956,18.66,157.21,157.2,60.9025]
[1723182950154,18.66,157.21,157.2,45.0]
[1723182950745,18.66,157.21,157.19,51.3616]
[1723182950943,108.26255854,157.28,157.2,6.3613]
[1723182951171,18.66,157.22,157.21,45.0]
[1723182956563,18.66,157.22,157.21,67.2631]
[1723182957650,18.66,157.22,157.21,60.9022]
[1723182959058,18.66,157.23,157.21,60.9022]
[1723182960372,15.2637,157.28,157.23,6.36]
[1723182960671,18.66,157.25,157.23,6.36]
[1723182961258,18.66,157.26,157.24,45.0]
[1723182961886,18.66,157.25,157.24,45.0]
[1723182962057,18.66,157.25,157.23,45.0]
[1723182963397,18.66,157.24,157.21,15.9022]
[1723182963682,18.66,157.24,157.21,22.2629]
[1723182963863,18.66,157.24,157.21,15.9022]
[1723182964064,18.66,157.23,157.19,12.555]
[1723182964265,18.66,157.21,157.19,6.1933]
[1723182965272,18.66,157.21,157.19,12.5548]
[1723182966087,18.66,157.22,157.19,12.5548]
[1723182966267,18.66,157.22,157.2,45.0]
[1723182968987,18.66,157.21,157.17,15.9054]
[1723182969187,18.66,157.19,157.18,45.0]
[1723182969780,18.66,157.2,157.18,45.0]
[1723182970587,21.6087,157.26,157.2,6.3613]
[1723182970783,18.66,157.22,157.2,6.3613]
[1723182972173,18.66,157.22,157.21,45.0]
[1723182972854,18.66,157.22,157.2,45.0]
[1723182973062,18.66,157.21,157.2,45.0]
[1723182974390,18.66,157.22,157.2,45.0]
[1723182981001,18.66,157.21,157.2,45.0]
[1723182982369,18.66,157.21,157.19,45.0]
[1723182982674,18.66,157.2,157.19,45.0]
[1723182983996,18.66,157.2,157.19,51.3617]